fUSD/lending_fUSD_20260226
["ID","MTS","AMOUNT","RATE_DAILY","PERIOD"]
[406750702,1772149840914,-18113.20291507,0.00016282,2]
[406750703,1772149840923,-11093.38772538,0.00016282,2]
[406750704,1772149840933,-166.66,0.00016338,2]
[406750705,1772149840942,-11286.3384326,0.00016444,2]
[406750706,1772149840951,-18113.20291507,0.00016687,2]
[406750707,1772149840960,-11093.38772538,0.00016687,2]
[406750708,1772149840970,-200.0,0.00016778,2]
[406750709,1772149840979,-1000.0,0.00016802,2]
[406750710,1772149840989,-166.66,0.00016843,2]
[406750711,1772149840998,-502.0,0.00016922,3]
[406750712,1772149841007,-156.56,0.00017031,2]
[406750713,1772149841016,-18113.20291507,0.00017091,2]
[406750714,1772149841026,-11093.38772538,0.00017091,2]
[406750715,1772149841035,-365.6134815,0.00017121,2]
[406750716,1772149841046,-11286.3384326,0.00017172,2]
[406750717,1772149841057,-365.61348149,0.00017251,2]
[406750718,1772149841066,-247.7,0.000173,2]
[406750719,1772149841076,-166.66,0.00017349,2]
[406750720,1772149841086,-350.0,0.0001737,2]
[406750721,1772149841095,-365.61348149,0.00017381,2]
[406750722,1772149841105,-917.18947985,0.00017391,2]
[406750723,1772149841114,-307.49506993,0.00017391,2]
[406750724,1772149841125,-18113.20291507,0.00017496,2]
[406750725,1772149841134,-11093.38772538,0.00017496,2]
[406750726,1772149841143,-365.61348149,0.00017511,2]
[406750727,1772149841153,-543.36428895,0.0001764,2]
[406750728,1772149841162,-365.61348149,0.0001764,2]
[406750729,1772149841171,-86345.1339,0.00017736,2]
[406750730,1772149841180,-365.61348149,0.0001777,2]
[406750731,1772149841189,-450.0,0.00017808,2]
[406750732,1772149841198,-500.0,0.00017808,2]
[406750733,1772149841207,-500.0,0.00017808,2]
[406750734,1772149841216,-500.0,0.00017808,2]
[406750735,1772149841226,-500.0,0.00017808,2]
[406750736,1772149841235,-500.0,0.00017808,2]
[406750737,1772149841245,-500.0,0.00017808,2]
[406750738,1772149841255,-500.0,0.00017808,2]
[406750739,1772149841264,-500.0,0.00017808,2]
[406750740,1772149841273,-500.0,0.00017808,2]
[406750741,1772149841282,-500.0,0.00017808,2]
[406750742,1772149841295,-500.0,0.00017808,2]
[406750743,1772149841304,-500.0,0.00017808,2]
[406750744,1772149841313,-500.0,0.00017808,2]
[406750745,1772149841322,-500.0,0.00017808,2]
[406750746,1772149841331,-500.0,0.00017808,2]
[406750747,1772149841341,-371.54123238,0.00017808,2]
[406750748,1772149841351,-800.0,0.00017808,2]
[406750749,1772149841360,-429.07661504,0.0001782,10]
[406750750,1772149841369,-166.66,0.00017855,2]
[406750751,1772149841378,-156.7575,0.00017863,14]
[406750752,1772149841388,-1000.0,0.000179,2]
[406750753,1772149841397,-5000.0,0.000179,2]
[406750754,1772149841407,-10000.0,0.000179,2]
[406750755,1772149841416,-365.61348149,0.000179,2]
[406750756,1772149841425,-18113.20291507,0.000179,2]
[406750757,1772149841434,-11093.38772538,0.000179,2]
[406750758,1772149841443,-11286.3384326,0.000179,2]
[406750759,1772149841453,-558.02622135,0.000179,2]
[406750760,1772149841462,-1876.0,0.000179,2]
[406750761,1772149841472,-190.62156941,0.00017973,2]
[406750762,1772149841482,-500.0,0.00017973,2]
[406750763,1772149841491,-150.0,0.00017975,2]
[406750764,1772149841501,-300.0,0.00017999,2]
[406750765,1772149841510,-150.0,0.00017999,2]
[406750766,1772149841519,-155.07011647,0.00017999,2]
[406750767,1772149841529,-871752.4789463,0.00018,2]
[406750772,1772149849677,-2456.0,0.00015074,2]
[406750773,1772149849687,-1027096.89891549,0.00018,2]
[406750774,1772149849696,-300.0,0.00018,2]
[406750775,1772149849706,-3000.0,0.00018,2]
[406750776,1772149849715,-7457958.6060794,0.00018,2]
[406750777,1772149849724,-2040871.29367251,0.00018,2]
[406750778,1772149849734,-1562.45841792,0.00018,2]
[406750779,1772149849744,-160.0,0.00018,2]
[406750780,1772149849754,-242.34,0.00018,7]
[406750781,1772149849763,-8849705.22616192,0.00018,2]
[406750782,1772149849772,-210683.36825722,0.00018,2]
[406750783,1772149849782,-500.0,0.00018,2]
[406750784,1772149849791,-300.0,0.00018,3]
[406750785,1772149849801,-506.95596,0.00018,2]
[406750786,1772149849811,-7183112.47008624,0.00018,2]
[406750787,1772149849820,-4017016.80833025,0.00018,2]
[406750788,1772149849830,-113860.9200408,0.00018,2]
[406750789,1772149849840,-1000.0,0.00018,2]
[406750790,1772149849849,-1000.0,0.00018,2]
[406750791,1772149849859,-1000.0,0.00018,2]
[406750792,1772149849868,-1000.0,0.00018,2]
[406750793,1772149849878,-1000.0,0.00018,2]
[406750794,1772149849887,-948.17245614,0.00018,2]
[406750795,1772149849897,-1000.0,0.00018,2]
[406750796,1772149849906,-2714394.12706722,0.00018,2]
[406750797,1772149849916,-274367.58194899,0.00018,2]
[406750798,1772149849926,-1209448.98483113,0.00018,2]
[406750799,1772149849935,-719668.14201918,0.00018,2]
[406750800,1772149849944,-151.0,0.00018,2]
[406750801,1772149849954,-159.81865311,0.00018,2]
[406750802,1772149849963,-200.0,0.00018,3]
[406750803,1772149849973,-200.0,0.00018,3]
[406750804,1772149849982,-200.0,0.00018,3]
[406750805,1772149849992,-30000.0,0.00018,2]
[406750806,1772149850001,-27477.82493153,0.00018,3]
[406750807,1772149850010,-14198.81885487,0.00018,4]
[406750808,1772149850020,-263490.0005639,0.00018,2]
[406750809,1772149850029,-3656.4454132,0.00018,2]
[406750810,1772149850041,-196498.0133031,0.00018,2]
[406750811,1772149850054,-173.95657067,0.00018,3]
[406750812,1772149850063,-160.0,0.00018,3]
[406750813,1772149850073,-151.0,0.00018,2]
[406750814,1772149850083,-151.0,0.00018,2]
[406750815,1772149850092,-151.0,0.00018,2]
[406750816,1772149850102,-135868.2262185,0.00018,2]
[406750817,1772149850111,-200.0,0.00018,2]
[406750818,1772149850120,-152.838506,0.00018,2]
[406750819,1772149850129,-88268.8087741,0.00018,2]
[406750820,1772149850139,-151.026065,0.00018,2]
[406750821,1772149850148,-151.0,0.00018,2]
[406750822,1772149850157,-151.0,0.00018,2]
[406750823,1772149850167,-151.0,0.00018,2]
[406750824,1772149850176,-151.0,0.00018,2]
[406750825,1772149850185,-151.0,0.00018,2]
[406750826,1772149850194,-151.0,0.00018,2]
[406750827,1772149850203,-234.465008,0.00018,2]
[406750828,1772149850213,-200.0,0.00018,2]
[406750829,1772149850222,-442.23228,0.00018,2]
[406750830,1772149850231,-151.0,0.00018,2]
[406750831,1772149850241,-151.0,0.00018,2]
[406750832,1772149850250,-151.0,0.00018,2]
[406750833,1772149850259,-151.0,0.00018,2]
[406750834,1772149850268,-151.0,0.00018,2]
[406750835,1772149850277,-151.0,0.00018,2]
[406750836,1772149850287,-151.0,0.00018,2]
[406750837,1772149850296,-151.0,0.00018,2]
[406750838,1772149850305,-151.0,0.00018,2]
[406750839,1772149850314,-151.0,0.00018,2]
[406750840,1772149850325,-151.0,0.00018,2]
[406750841,1772149850334,-151.0,0.00018,2]
[406750842,1772149850343,-201.975264,0.00018,2]
[406750843,1772149850353,-201.975264,0.00018,2]
[406750844,1772149850365,-201.975264,0.00018,2]
[406750845,1772149850375,-201.975264,0.00018,2]
[406750846,1772149850384,-201.975264,0.00018,2]
[406750847,1772149850393,-201.975264,0.00018,2]
[406750848,1772149850403,-201.975264,0.00018,2]
[406750849,1772149850412,-201.975264,0.00018,2]
[406750850,1772149850422,-20000.0,0.00018,2]
[406750851,1772149850431,-201.975264,0.00018,2]
[406750852,1772149850441,-201.975264,0.00018,2]
[406750853,1772149850451,-201.975264,0.00018,2]
[406750854,1772149850460,-201.975264,0.00018,2]
[406750855,1772149850469,-201.975264,0.00018,2]
[406750856,1772149850478,-201.975264,0.00018,2]
[406750857,1772149850487,-201.975264,0.00018,2]
[406750858,1772149850496,-201.975264,0.00018,2]
[406750859,1772149850506,-201.975264,0.00018,2]
[406750860,1772149850515,-3559.642962,0.00018,2]
[406750861,1772149850525,-201.975264,0.00018,2]
[406750862,1772149850535,-201.975264,0.00018,2]
[406750863,1772149850545,-201.975269,0.00018,2]
[406750864,1772149850554,-151.0,0.00018,2]
[406750865,1772149850563,-151.0,0.00018,2]
[406750866,1772149850573,-151.0,0.00018,2]
[406750867,1772149850582,-151.0,0.00018,2]
[406750868,1772149850591,-151.0,0.00018,2]
[406750869,1772149850600,-151.0,0.00018,2]
[406750870,1772149850609,-199.62562,0.00018,2]
[406750871,1772149850618,-200.0,0.00018,2]
[406750872,1772149850628,-23099.1265856,0.00018,2]
[406750873,1772149850637,-5029.96645237,0.00018032,2]
[406750874,1772149850647,-700.0,0.00018067,2]
[406750875,1772149850656,-3498.0,0.00018074,2]
[406750876,1772149850666,-1340.0,0.00018074,2]
[406750877,1772149850675,-618.0,0.00018074,2]
[406750878,1772149850684,-1041.0,0.00018074,2]
[406750879,1772149850693,-1277.0,0.00018074,2]
[406750880,1772149850702,-4572.0,0.00018074,2]
[406750881,1772149850712,-413.0,0.00018074,2]
[406750882,1772149850721,-2456.0,0.00018074,2]
[406750883,1772149850730,-168.0,0.00018083,2]
[406750884,1772149850740,-168.0,0.00018098,2]
[406750885,1772149850749,-1785.1217732,0.000181,2]
[406750886,1772149850758,-238.98825351,0.00018128,2]
[406750887,1772149850769,-378.0,0.00018128,2]
[406750888,1772149850778,-1109.0,0.00018141,2]
[406750889,1772149850787,-200.0,0.0001818,2]
[406750890,1772149850796,-200.0,0.0001818,2]
[406750891,1772149850805,-378.0,0.00018192,2]
[406750892,1772149850815,-3000.0,0.000182,3]
[406750893,1772149850825,-442.23228,0.000182,2]
[406750894,1772149850834,-2305.82033138,0.0001821,2]
[406750895,1772149850843,-1197.0,0.0001821,5]
[406750896,1772149850853,-1752.0,0.0001821,5]
[406750897,1772149850863,-200.0,0.00018252,2]
[406750898,1772149850872,-200.0,0.00018252,2]
[406750899,1772149850881,-200.0,0.00018252,2]
[406750900,1772149850890,-200.0,0.00018252,2]
[406750901,1772149850900,-200.0,0.00018252,2]
[406750902,1772149850909,-200.0,0.00018252,2]
[406750903,1772149850918,-200.0,0.00018252,2]
[406750904,1772149850927,-200.0,0.00018252,2]
[406750905,1772149850936,-200.0,0.00018252,2]
[406750906,1772149850946,-200.0,0.00018252,2]
[406750907,1772149850955,-200.0,0.00018252,2]
[406750908,1772149850965,-200.0,0.00018252,2]
[406750909,1772149850975,-200.0,0.00018252,2]
[406750910,1772149850985,-200.0,0.00018252,2]
[406750911,1772149850994,-200.0,0.00018252,2]
[406750912,1772149851005,-200.0,0.00018252,2]
[406750913,1772149851014,-200.0,0.00018252,2]
[406750914,1772149851023,-200.0,0.00018252,2]
[406750915,1772149851033,-200.0,0.00018252,2]
[406750916,1772149851042,-200.0,0.00018252,2]
[406750917,1772149851056,-200.0,0.00018252,2]
[406750918,1772149851066,-200.0,0.00018252,2]
[406750919,1772149851075,-200.0,0.00018252,2]
[406750920,1772149851085,-200.0,0.00018252,2]
[406750921,1772149851095,-200.0,0.00018252,2]
[406750922,1772149851104,-200.0,0.00018252,2]
[406750923,1772149851114,-200.0,0.00018252,2]
[406750924,1772149851123,-200.0,0.00018252,2]
[406750925,1772149851133,-200.0,0.00018252,2]
[406750926,1772149851143,-200.0,0.00018252,2]
[406750927,1772149851152,-200.0,0.00018252,2]
[406750928,1772149851163,-200.0,0.00018252,2]
[406750929,1772149851172,-200.0,0.00018252,2]
[406750930,1772149851182,-200.0,0.00018252,2]
[406750931,1772149851191,-200.0,0.00018252,2]
[406750932,1772149851200,-200.0,0.00018252,2]
[406750933,1772149851210,-240.0,0.00018252,2]
[406750934,1772149851219,-800.0,0.00018252,2]
[406750935,1772149851228,-800.0,0.00018252,2]
[406750936,1772149851238,-800.0,0.00018252,2]
[406750937,1772149851247,-800.0,0.00018252,2]
[406750938,1772149851256,-800.0,0.00018252,2]
[406750939,1772149851266,-800.0,0.00018252,2]
[406750940,1772149851275,-800.0,0.00018252,2]
[406750941,1772149851284,-800.0,0.00018252,2]
[406750942,1772149851294,-800.0,0.00018252,2]
[406750943,1772149851303,-800.0,0.00018252,2]
[406750944,1772149851312,-800.0,0.00018252,2]
[406750945,1772149851322,-800.0,0.00018252,2]
[406750946,1772149851331,-800.0,0.00018252,2]
[406750947,1772149851340,-800.0,0.00018252,2]
[406750948,1772149851350,-800.0,0.00018252,2]
[406750949,1772149851360,-800.0,0.00018252,2]
[406750950,1772149851369,-800.0,0.00018252,2]
[406750951,1772149851378,-800.0,0.00018252,2]
[406750952,1772149851388,-800.0,0.00018252,2]
[406750953,1772149851397,-800.0,0.00018252,2]
[406750954,1772149851406,-800.0,0.00018252,2]
[406750955,1772149851415,-800.0,0.00018252,2]
[406750956,1772149851424,-800.0,0.00018252,2]
[406750957,1772149851436,-800.0,0.00018252,2]
[406750958,1772149851445,-800.0,0.00018252,2]
[406750959,1772149851455,-800.0,0.00018252,2]
[406750960,1772149851464,-800.0,0.00018252,2]
[406750961,1772149851473,-800.0,0.00018252,2]
[406750962,1772149851482,-800.0,0.00018252,2]
[406750963,1772149851491,-800.0,0.00018252,2]
[406750964,1772149851500,-800.0,0.00018252,2]
[406750965,1772149851509,-800.0,0.00018252,2]
[406750966,1772149851518,-800.0,0.00018252,2]
[406750967,1772149851527,-800.0,0.00018252,2]
[406750968,1772149851537,-800.0,0.00018252,2]
[406750969,1772149851547,-800.0,0.00018252,2]
[406750970,1772149851556,-800.0,0.00018252,2]
[406750971,1772149851565,-800.0,0.00018252,2]
[406750972,1772149851574,-800.0,0.00018252,2]
[406750973,1772149851584,-800.0,0.00018252,2]
[406750974,1772149851593,-800.0,0.00018252,2]
[406750975,1772149851603,-800.0,0.00018252,2]
[406750976,1772149851613,-433.0,0.00018252,2]
[406750977,1772149851623,-168.0,0.00018289,2]
[406750978,1772149851633,-168.0,0.00018315,2]
[406750979,1772149851642,-168.0,0.00018346,2]
[406750980,1772149851653,-88800.5,0.00018356,2]
[406750981,1772149851661,-200.0,0.00018362,2]
[406750982,1772149851670,-200.0,0.00018362,2]
[406750983,1772149851680,-442.23228,0.000184,2]
[406750984,1772149851689,-156.7575,0.00018411,14]
[406750985,1772149851700,-378.0,0.00018432,2]
[406750986,1772149851709,-168.0,0.00018444,2]
[406750987,1772149851719,-378.0,0.0001845,2]
[406750988,1772149851730,-5000.0,0.000185,7]
[406750989,1772149851739,-15000.0,0.000185,7]
[406750990,1772149851749,-173.95657067,0.000185,7]
[406750991,1772149851758,-160.0,0.000185,7]
[406750992,1772149851770,-168.0,0.00018503,2]
[406750993,1772149851780,-1000.0,0.00018521,2]
[406750994,1772149851791,-168.0,0.00018579,2]
[406750995,1772149851800,-9000.0,0.000186,2]
[406750996,1772149851810,-442.23228,0.000186,2]
[406750997,1772149851819,-5221.62676621,0.00018606,3]
[406750998,1772149851828,-168.0,0.00018607,2]
[406750999,1772149851837,-168.0,0.00018615,2]
[406751000,1772149851847,-1000.0,0.00018669,2]
[406751001,1772149851856,-168.0,0.00018676,2]
[406751002,1772149851865,-224.40086961,0.00018721,2]
[406751003,1772149851878,-502.0,0.00018724,5]
[406751004,1772149851889,-156.56,0.00018734,2]
[406751005,1772149851898,-1291.0,0.00018798,2]
[406751006,1772149851907,-442.23228,0.000188,2]
[406751007,1772149851916,-168.0,0.00018825,2]
[406751008,1772149851926,-150.0,0.00018839,2]
[406751009,1772149851936,-170.37258894,0.0001888,5]
[406751010,1772149851947,-6778.1057,0.000189,2]
[406751011,1772149851956,-261.7706833,0.00018904,2]
[406751012,1772149851967,-378.0,0.0001893,2]
[406751013,1772149851977,-156.7575,0.00018959,14]
[406751014,1772149851986,-1291.0,0.00018962,2]
[406751015,1772149851995,-5185.86669628,0.00019,2]
[406751016,1772149852005,-5000.0,0.00019,7]
[406751017,1772149852015,-191.82234426,0.00019,2]
[406751018,1772149852024,-193271.77822202,0.00019,2]
[406751019,1772149852033,-350.0,0.00019,2]
[406751020,1772149852043,-3154.00641534,0.00019,2]
[406751021,1772149852057,-442.23228,0.00019,2]
[406751022,1772149852066,-1291.0,0.00019064,2]
[406751023,1772149852076,-1007.20418576,0.00019068,2]
[406751024,1772149852085,-168.0,0.00019163,2]
[406751025,1772149852095,-544.32,0.00019164,2]
[406751026,1772149852104,-3000.0,0.00019178,2]
[406751027,1772149852113,-376.50438094,0.00019178,7]
[406751028,1772149852122,-20210.44,0.00019178,2]
[406751029,1772149852132,-808.05,0.00019178,30]
[406751030,1772149852141,-151.0,0.00019178,2]
[406751031,1772149852150,-151.0,0.00019178,2]
[406751032,1772149852159,-151.0,0.00019178,2]
[406751033,1772149852169,-151.0,0.00019178,2]
[406751034,1772149852178,-151.0,0.00019178,2]
[406751035,1772149852187,-151.0,0.00019178,2]
[406751036,1772149852198,-151.0,0.00019178,2]
[406751037,1772149852207,-151.0,0.00019178,2]
[406751038,1772149852216,-151.0,0.00019178,2]
[406751039,1772149852225,-151.0,0.00019178,2]
[406751040,1772149852234,-151.0,0.00019178,2]
[406751041,1772149852243,-151.0,0.00019178,2]
[406751042,1772149852253,-151.0,0.00019178,2]
[406751043,1772149852262,-151.0,0.00019178,2]
[406751044,1772149852271,-151.0,0.00019178,2]
[406751045,1772149852282,-151.0,0.00019178,2]
[406751046,1772149852292,-151.0,0.00019178,2]
[406751047,1772149852302,-240.82079334,0.00019178,2]
[406751048,1772149852311,-216.70709,0.00019178,3]
[406751049,1772149852322,-289.649033,0.00019178,2]
[406751050,1772149852333,-289.649033,0.00019178,2]
[406751051,1772149852342,-289.649033,0.00019178,2]
[406751052,1772149852352,-289.649033,0.00019178,2]
[406751053,1772149852362,-289.649033,0.00019178,2]
[406751054,1772149852371,-289.649033,0.00019178,2]
[406751055,1772149852381,-289.649033,0.00019178,2]
[406751056,1772149852390,-289.649033,0.00019178,2]
[406751057,1772149852400,-289.649033,0.00019178,2]
[406751058,1772149852410,-289.649033,0.00019178,2]
[406751059,1772149852419,-289.649033,0.00019178,2]
[406751060,1772149852429,-289.649033,0.00019178,2]
[406751061,1772149852439,-289.649033,0.00019178,2]
[406751062,1772149852449,-289.649033,0.00019178,2]
[406751063,1772149852458,-289.649033,0.00019178,2]
[406751064,1772149852467,-289.649033,0.00019178,2]
[406751065,1772149852476,-289.649033,0.00019178,2]
[406751066,1772149852487,-289.649033,0.00019178,2]
[406751067,1772149852497,-289.649033,0.00019178,2]
[406751068,1772149852507,-289.649029,0.00019178,2]
[406751069,1772149852517,-151.0,0.00019178,2]
[406751070,1772149852527,-151.0,0.00019178,2]
[406751071,1772149852537,-151.0,0.00019178,2]
[406751072,1772149852547,-151.0,0.00019178,2]
[406751073,1772149852556,-151.0,0.00019178,2]
[406751074,1772149852566,-151.0,0.00019178,2]
[406751075,1772149852753,-151.0,0.00019178,2]
[406751076,1772149852763,-151.0,0.00019178,2]
[406751077,1772149852772,-156.752438,0.00019178,2]
[406751078,1772149852782,-151.0,0.00019178,2]
[406751079,1772149852791,-151.0,0.00019178,2]
[406751080,1772149852801,-151.0,0.00019178,2]
[406751081,1772149852811,-151.0,0.00019178,2]
[406751082,1772149852821,-151.0,0.00019178,2]
[406751083,1772149852831,-151.0,0.00019178,2]
[406751084,1772149852840,-151.0,0.00019178,2]
[406751085,1772149852849,-151.0,0.00019178,2]
[406751086,1772149852860,-170.275128,0.00019178,2]
[406751087,1772149852870,-150.0,0.00019178,2]
[406751088,1772149852880,-5442.77328217,0.0001918,4]
[406751089,1772149852889,-168.0,0.00019215,2]
[406751090,1772149852899,-168.0,0.00019232,2]
[406751091,1772149852908,-5000.0,0.0001925,7]
[406751092,1772149852917,-350.0,0.00019251,2]
[406751093,1772149852927,-378.0,0.00019271,2]
[406751094,1772149852937,-350.0,0.0001929,2]
[406751095,1772149852950,-5000.0,0.000195,7]
[406751096,1772149852960,-5000.0,0.000195,7]
[406751097,1772149852970,-5000.0,0.000195,7]
[406751098,1772149852980,-20046.72,0.00019711,2]
[406751099,1772149852989,-150.0,0.00019726,2]
[406751100,1772149853001,-250.0,0.00019726,2]
[406751101,1772149853010,-5604.94739388,0.00019754,5]
[406751102,1772149853020,-155.0,0.00019799,2]
[406751103,1772149853029,-155.0,0.00019799,2]
[406751104,1772149853039,-155.485,0.00019799,2]
[406751105,1772149853052,-150.0,0.00019839,2]
[406751106,1772149853062,-4940.97601781,0.000199,3]
[406751107,1772149853072,-242058.13708389,0.0001995,15]
[406751108,1772149853083,-150.0,0.00019973,2]
[406751109,1772149853093,-170.37258894,0.00019976,5]
[406751110,1772149853103,-1538.5147071,0.0002,2]
[406751111,1772149853113,-177.10882201,0.0002,2]
[406751112,1772149853126,-1473.1299484,0.0002,5]
[406751113,1772149853136,-3950.0,0.0002,2]
[406751114,1772149853145,-1298.86553107,0.0002,2]
[406751115,1772149853155,-1048.51619712,0.0002,2]
[406751116,1772149853164,-2873.16929087,0.0002,2]
[406751117,1772149853173,-308.31195096,0.0002,2]
[406751118,1772149853183,-152.0,0.0002,2]
[406751119,1772149853193,-1001.64831697,0.0002,2]
[406751120,1772149853202,-164.11,0.0002,2]
[406751121,1772149853212,-25686.28579449,0.0002,2]
[406751122,1772149853222,-12969.94606892,0.0002,2]
[406751123,1772149853231,-150.0,0.0002,2]
[406751124,1772149853241,-150.0,0.0002,2]
[406751125,1772149853251,-199.56940058,0.0002,2]
[406751126,1772149853260,-1000.0,0.0002,120]
[406751127,1772149853270,-4809.7907397,0.0002,2]
[406751128,1772149853279,-7397.37630226,0.0002,14]
[406751129,1772149853289,-193.0,0.0002,2]
[406751130,1772149853298,-200.0,0.0002,2]
[406751131,1772149853308,-200.0,0.0002,2]
[406751132,1772149853318,-160.0,0.0002,20]
[406751133,1772149853328,-1000.0,0.0002,4]
[406751134,1772149853337,-809.0,0.0002,120]
[406751135,1772149853346,-1656.19,0.0002,30]
[406751136,1772149853358,-1666.45858,0.0002,2]
[406751137,1772149853368,-165.52628821,0.0002,2]
[406751138,1772149853378,-151.0,0.0002,120]
[406751139,1772149853388,-740.18835804,0.0002,120]
[406751140,1772149853398,-6575.79578445,0.0002,120]
[406751141,1772149853408,-190.025,0.0002,2]
[406751142,1772149853417,-200.0,0.0002,2]
[406751143,1772149853426,-150.0,0.0002,20]
[406751144,1772149853436,-806.130954,0.0002,2]
[406751145,1772149853446,-8720.0,0.0002001,2]
[406751146,1772149853457,-10000.0,0.00020137,2]
[406751147,1772149853467,-10000.0,0.00020137,2]
[406751148,1772149853477,-10000.0,0.00020137,2]
[406751149,1772149853487,-250.0,0.00020274,2]
[406751150,1772149853496,-350.0,0.00020274,2]
[406751151,1772149853507,-5855.58011198,0.00020327,6]
[406751152,1772149853517,-156.75,0.00020329,14]
[406751153,1772149853526,-156.56,0.00020437,2]
[406751154,1772149853536,-815.8632506,0.00020444,2]
[406751155,1772149853546,-58792.5660233,0.00020496,2]
[406751156,1772149853555,-43844.6331771,0.00020496,2]
[406751157,1772149853564,-30316.2990752,0.00020496,2]
[406751158,1772149853574,-19695.4334378,0.00020496,2]
[406751159,1772149853583,-5154.1118143,0.00020496,2]
[406751160,1772149853593,-250.0,0.00020521,2]
[406751161,1772149853603,-502.0,0.00020527,6]
[406751162,1772149853612,-1000.0,0.00020536,2]
[406751163,1772149853622,-155.72,0.00020548,2]
[406751164,1772149853631,-21614.03,0.00020548,2]
[406751165,1772149853641,-22747.64126433,0.000207,2]
[406751166,1772149853651,-350.0,0.00020822,2]
[406751167,1772149853662,-450.0,0.00020822,2]
[406751168,1772149853672,-150.0,0.00020839,2]
[406751169,1772149853681,-5988.26802156,0.00020901,6]
[406751170,1772149853691,-182.0436977,0.0002099,2]
[406751171,1772149853701,-177.2241875,0.0002099,2]
[406751172,1772149853711,-1197.92108993,0.00021,2]
[406751173,1772149853722,-197.72684011,0.00021,2]
[406751174,1772149853733,-20000.0,0.00021,2]
[406751175,1772149853743,-40000.0,0.00021,2]
[406751176,1772149853753,-5000.0,0.00021,7]
[406751177,1772149853762,-3000.0,0.00021,2]
[406751178,1772149853772,-1980.0,0.00021,2]
[406751179,1772149853782,-400.0,0.00021,2]
[406751180,1772149853792,-201.01387177,0.0002101,120]
[406751181,1772149853801,-13118.3946723,0.00021053,2]
[406751182,1772149853811,-9783.0600224,0.00021053,2]
[406751183,1772149853820,-6764.4806677,0.00021053,2]
[406751184,1772149853829,-4394.6452171,0.00021053,2]
[406751185,1772149853839,-1150.0377945,0.00021053,2]
[406751186,1772149853850,-12571.82,0.00021068,2]
[406751187,1772149853861,-350.0,0.00021068,2]
[406751188,1772149853870,-170.37258894,0.00021072,5]
[406751189,1772149853880,-3498.0,0.00021074,2]
[406751190,1772149853890,-1340.0,0.00021074,2]
[406751191,1772149853900,-618.0,0.00021074,2]
[406751192,1772149853909,-1041.0,0.00021074,2]
[406751193,1772149853918,-1277.0,0.00021074,2]
[406751194,1772149853927,-4572.0,0.00021074,2]
[406751195,1772149853937,-413.0,0.00021074,2]
[406751196,1772149853947,-2456.0,0.00021074,2]
[406751197,1772149853958,-155.0,0.0002112,30]
[406751198,1772149853967,-31070.31318521,0.00021211,7]
[406751199,1772149853976,-6406.61,0.0002137,2]
[406751200,1772149853987,-450.0,0.0002137,2]
[406751201,1772149853996,-550.0,0.0002137,2]
[406751202,1772149854005,-833.8077655,0.00021424,2]
[406751203,1772149854015,-6268.38694179,0.00021475,7]
[406751204,1772149854024,-223.06874826,0.000215,2]
[406751205,1772149854034,-57790.90733702,0.000215,2]